bitfinex-derivatives/quotes_ETHF0:USTF0_20260119
["timestamp","ask_amount","ask_price","bid_price","bid_amount"]
[1768845506270,0.90783571,3221.4,3220.2,1.4444102]
[1768845506571,0.90783571,3221.3,3220.2,1.4444102]
[1768845506769,0.14214743,3221.5,3220.2,1.4444102]
[1768845506969,0.90784662,3221.4,3220.2,1.4444102]
[1768845507263,0.90784662,3221.3,3220.2,1.4444102]
[1768845507468,0.90784662,3221.2,3220.2,1.4444102]
[1768845507778,0.14214743,3221.5,3220.2,1.4444102]
[1768845507979,0.90790831,3221.4,3220.2,1.4444102]
[1768845508179,0.90790831,3221.3,3220.2,1.4444102]
[1768845508382,0.14214743,3221.5,3220.2,1.4444102]
[1768845508682,0.90791114,3221.4,3220.2,1.4444102]
[1768845508884,0.90791114,3221.3,3220.2,1.4444102]
[1768845509178,0.14214743,3221.5,3220.2,1.4444102]
[1768845509369,0.90790316,3221.4,3220.2,1.4444102]
[1768845509571,0.14214743,3221.5,3220.2,1.4444102]
[1768845509572,0.90790316,3221.3,3220.2,1.4444102]
[1768845509772,0.14214743,3221.5,3220.2,1.4444102]
[1768845509981,0.90791135,3221.4,3220.2,1.4444102]
[1768845510282,0.90791135,3221.3,3220.2,1.4444102]
[1768845510482,0.14214743,3221.5,3220.2,1.4444102]
[1768845510684,0.90791908,3221.4,3220.2,1.4444102]
[1768845510982,0.90791908,3221.3,3220.2,1.4444102]
[1768845511183,0.14214743,3221.5,3220.2,1.4444102]
[1768845511378,0.90791935,3221.4,3220.2,1.4444102]
[1768845511681,0.90791935,3221.3,3220.2,1.4444102]
[1768845511979,0.14214743,3221.5,3220.2,1.4444102]
[1768845512182,0.9079216,3221.4,3220.2,1.4444102]
[1768845512373,0.9079216,3221.3,3220.2,1.4444102]
[1768845512575,0.14214743,3221.5,3220.2,1.4444102]
[1768845512785,0.90792331,3221.4,3220.2,1.4444102]
[1768845512974,0.90792331,3221.3,3220.2,1.4444102]
[1768845513174,0.14214743,3221.5,3220.2,1.4444102]
[1768845513468,0.90792013,3221.4,3220.2,1.4444102]
[1768845513672,0.90792013,3221.3,3220.2,1.4444102]
[1768845513884,0.14214743,3221.5,3220.2,1.4444102]
[1768845514184,0.90792386,3221.4,3220.2,1.4444102]
[1768845514374,0.90792386,3221.3,3220.2,1.4444102]
[1768845514576,0.14214743,3221.5,3220.2,1.4444102]
[1768845514780,0.90790987,3221.4,3220.3,0.15534]
[1768845514981,0.90790987,3221.3,3220.3,0.15534]
[1768845515182,0.14214743,3221.5,3220.3,0.15534]
[1768845515379,0.90791181,3221.4,3220.3,0.15534]
[1768845515669,0.90791181,3221.3,3220.3,0.15534]
[1768845515871,0.14214743,3221.5,3220.3,0.15534]
[1768845516177,0.90794114,3221.4,3220.3,0.15534]
[1768845516369,0.14214743,3221.5,3220.3,0.15534]
[1768845516370,0.90794114,3221.3,3220.3,0.15534]
[1768845516570,0.14214743,3221.5,3220.3,0.15534]
[1768845516783,0.90794313,3221.4,3220.3,0.15534]
[1768845516970,0.90794313,3221.3,3220.3,0.15534]
[1768845517169,0.14214743,3221.5,3220.3,0.15534]
[1768845517374,0.90795879,3221.4,3220.3,0.15534]
[1768845517584,0.90795879,3221.3,3220.3,0.15534]
[1768845517792,0.14214743,3221.5,3220.3,0.15534]
[1768845518081,0.90796281,3221.4,3220.3,0.15534]
[1768845518282,0.90796281,3221.3,3220.3,0.15534]
[1768845518482,0.14214743,3221.5,3220.3,0.15534]
[1768845518682,0.90796544,3221.4,3220.3,0.15534]
[1768845518884,0.90796544,3221.3,3220.3,0.15534]
[1768845519087,0.13531952,3221.4,3220.3,0.15534]
[1768845519286,0.90797842,3221.3,3220.3,0.15534]
[1768845519583,0.13531952,3221.4,3220.3,0.15534]
[1768845519883,0.90798182,3221.3,3220.3,0.15534]
[1768845520185,0.13531952,3221.4,3220.3,0.15534]
[1768845520377,0.90801825,3221.3,3220.3,0.15534]
[1768845520676,0.13531952,3221.4,3220.3,0.15534]
[1768845520878,0.90802012,3221.3,3220.3,0.15534]
[1768845521077,0.13531952,3221.4,3220.3,0.15534]
[1768845521276,0.90802012,3221.3,3220.3,0.15534]
[1768845521482,0.13531952,3221.4,3220.3,0.15534]
[1768845521681,0.9080238,3221.3,3220.3,0.15534]
[1768845521884,0.13531952,3221.4,3220.3,0.15534]
[1768845522083,0.90802303,3221.3,3220.3,0.15534]
[1768845522284,0.13531952,3221.4,3220.3,0.15534]
[1768845522486,0.90802522,3221.3,3220.3,0.15534]
[1768845522682,0.13531952,3221.4,3220.3,0.15534]
[1768845522987,0.9080297,3221.3,3220.3,0.15534]
[1768845523189,0.13531952,3221.4,3220.3,0.15534]
[1768845523492,0.90802739,3221.3,3220.3,0.15534]
[1768845523689,0.13531952,3221.4,3220.3,0.15534]
[1768845523881,0.9080305,3221.3,3220.3,0.15534]
[1768845524179,0.13531952,3221.4,3220.3,0.15534]
[1768845524382,0.90803008,3221.3,3220.3,0.15534]
[1768845524580,0.13531952,3221.4,3220.3,0.15534]
[1768845524782,0.90802578,3221.3,3220.3,0.15534]
[1768845525082,0.13531952,3221.4,3220.3,0.15534]
[1768845525280,0.90803015,3221.3,3220.3,0.15534]
[1768845525486,0.13531952,3221.4,3220.3,0.15534]
[1768845525683,0.90803038,3221.3,3220.3,0.15534]
[1768845525982,0.13531952,3221.4,3220.3,0.15534]
[1768845526184,0.90802741,3221.3,3220.3,0.15534]
[1768845526384,0.13531952,3221.4,3220.3,0.15534]
[1768845526573,0.90801745,3221.3,3220.3,0.15534]
[1768845526776,0.13531952,3221.4,3220.3,0.15534]
[1768845526987,0.90802121,3221.3,3220.3,0.15534]
[1768845527174,0.13504767,3221.3,3220.3,0.15534]
[1768845530488,0.90819986,3221.2,3220.3,0.15534]
[1768845530677,0.13504767,3221.3,3220.3,0.15534]
[1768845531289,0.90819909,3221.2,3220.3,0.15534]
[1768845531490,0.13504767,3221.3,3220.3,0.15534]
[1768845531680,0.90828684,3221.2,3220.3,0.15534]
[1768845531880,0.13504767,3221.3,3220.3,0.15534]
[1768845532184,0.90828684,3221.2,3220.3,0.15534]
[1768845532480,0.13504767,3221.3,3220.3,0.15534]
[1768845532680,0.90828745,3221.2,3220.3,0.15534]
[1768845532881,0.13504767,3221.3,3220.3,0.15534]
[1768845533080,0.90828864,3221.2,3220.3,0.15534]
[1768845533282,0.13504767,3221.3,3220.3,0.15534]
[1768845533583,0.90829253,3221.2,3220.3,0.15534]
[1768845533781,0.13504767,3221.3,3220.3,0.15534]
[1768845533982,0.90829253,3221.2,3220.3,0.15534]
[1768845534187,0.13504767,3221.3,3220.3,0.15534]
[1768845534390,0.90829926,3221.2,3220.3,0.15534]
[1768845534589,0.13504767,3221.3,3220.3,0.15534]
[1768845534792,0.90829702,3221.2,3220.3,0.15534]
[1768845534983,0.13504767,3221.3,3220.3,0.15534]
[1768845535290,0.90829808,3221.2,3220.3,0.15534]
[1768845535490,0.13504767,3221.3,3220.3,0.15534]
[1768845535683,0.90829378,3221.2,3220.3,0.15534]
[1768845535883,0.13504767,3221.3,3220.3,0.15534]
[1768845536084,0.9082941,3221.2,3220.3,0.15534]
[1768845536285,0.13504767,3221.3,3220.3,0.15534]
[1768845536579,0.90829132,3221.2,3220.3,0.15534]
[1768845536785,0.13504767,3221.3,3220.3,0.15534]
[1768845536981,0.90828965,3221.2,3220.3,0.15534]
[1768845537190,0.13504767,3221.3,3220.3,0.15534]
[1768845537395,0.90828965,3221.2,3220.3,0.15534]
[1768845537589,0.13504767,3221.3,3220.3,0.15534]
[1768845537790,0.9082845,3221.2,3220.3,0.15534]
[1768845537993,0.13504767,3221.3,3220.3,0.15534]
[1768845538290,0.90828373,3221.2,3220.3,0.15534]
[1768845538491,0.13504767,3221.3,3220.3,0.15534]
[1768845538694,0.90828788,3221.2,3220.3,0.15534]
[1768845538892,0.13504767,3221.3,3220.3,0.15534]
[1768845539086,0.90829537,3221.2,3220.3,0.15534]
[1768845539286,0.13504767,3221.3,3220.3,0.15534]
[1768845539487,0.90828468,3221.2,3220.3,0.15534]
[1768845539801,0.13504767,3221.3,3220.3,0.15534]
[1768845539988,0.00260181,3221.6,3220.2,0.00273894]
[1768845539989,0.14048426,3221.6,3220.4,0.15534]
[1768845540298,0.90826598,3221.5,3220.6,1.28632126]
[1768845540593,0.00260181,3221.6,3220.7,0.15532]
[1768845543487,0.14048426,3221.6,3220.7,0.15532]
[1768845543688,0.14048426,3221.6,3220.2,0.00273894]
[1768845543689,0.13788245,3221.4,3220.2,0.00273894]
[1768845551005,0.13788245,3221.4,3220.3,1.28632066]
[1768845559920,0.90673215,3221.3,3220.3,1.28632066]
[1768845560122,0.13788245,3221.4,3220.3,1.28632066]
[1768845560422,0.90673062,3221.3,3220.3,1.28632066]
[1768845560621,0.13788245,3221.4,3220.3,1.28632066]
[1768845560825,0.90673361,3221.3,3220.3,1.28632066]
[1768845561023,0.13788245,3221.4,3220.3,1.28632066]
[1768845561324,0.90673353,3221.3,3220.3,1.28632066]
[1768845561525,0.13788245,3221.4,3220.3,1.28632066]
[1768845561825,0.90673647,3221.3,3220.3,1.28632066]
[1768845562024,0.13788245,3221.4,3220.3,1.28632066]
[1768845562323,0.90671096,3221.3,3220.3,1.28632066]
[1768845562515,0.13788245,3221.4,3220.3,1.28632066]
[1768845562715,0.90671082,3221.3,3220.3,1.28632066]
[1768845562923,0.13788245,3221.4,3220.2,0.00273894]
[1768845563118,1.04037453,3221.3,3220.2,0.00273894]
[1768845563315,0.13366285,3221.3,3220.2,0.00273894]
[1768845573434,0.90736803,3221.2,3220.2,0.00273894]
[1768845573625,1.28632066,3221.1,3220.2,0.00273894]
[1768845573824,0.13366285,3221.0,3220.2,0.00273894]
[1768845576038,0.13366285,3221.0,3220.2,1.2890596]
[1768845579440,0.13366285,3221.0,3220.2,0.00273894]
[1768845590753,0.1342978,3221.4,3220.3,0.15534]
[1768845590955,1.04194084,3221.3,3220.3,0.15534]
[1768845591148,0.90764304,3221.2,3220.3,0.15534]
[1768845591346,0.1342978,3221.3,3220.3,0.15534]
[1768845592656,0.1342978,3221.3,3220.4,1.28632066]
[1768845593652,0.00260181,3221.6,3220.7,1.28632066]
[1768845593956,0.90770099,3221.5,3220.7,1.28632066]
[1768845594152,0.90770099,3221.4,3220.7,1.28632066]
[1768845594353,0.14473624,3221.6,3220.7,1.28632066]
[1768845594549,0.90769344,3221.5,3220.7,1.28632066]
[1768845594758,0.14213443,3221.3,3220.3,0.15534]
[1768845600060,0.14213443,3221.3,3220.3,1.44166066]
[1768845600266,0.00260181,3221.6,3220.7,1.28632066]
[1768845600457,0.90776197,3221.5,3220.3,0.15534]
[1768845600659,0.90776197,3221.4,3220.5,1.28632066]
[1768845600962,0.90776197,3221.3,3220.5,1.28632066]
[1768845601160,0.14473624,3221.6,3220.5,1.28632066]
[1768845601458,0.90775901,3221.5,3220.8,1.28632066]
[1768845601659,0.90775901,3221.4,3220.8,1.28632066]
[1768845601960,0.14473624,3221.6,3220.6,0.15533]
[1768845602164,0.90773384,3221.5,3220.6,0.15533]
[1768845602459,0.90773384,3221.4,3220.6,0.15533]
[1768845602762,0.14473624,3221.6,3220.6,0.15533]
[1768845602953,0.90772638,3221.5,3220.6,0.15533]
[1768845603153,0.90772638,3221.4,3220.6,0.15533]
[1768845603361,0.14473624,3221.6,3220.6,0.15533]
[1768845603566,1.04980927,3221.5,3220.6,0.15533]
[1768845603762,1.04980927,3221.4,3220.6,0.15533]
[1768845603964,0.14213443,3221.4,3220.6,0.15533]
[1768845606769,0.00260181,3221.6,3220.6,0.15533]
[1768845606975,0.90801423,3221.5,3220.6,0.15533]
[1768845607177,0.90801423,3221.4,3220.6,0.15533]
[1768845607377,0.00260181,3221.6,3220.6,0.15533]
[1768845607579,0.90802934,3221.5,3220.6,0.15533]
[1768845607781,0.90802934,3221.4,3220.6,0.15533]
[1768845607972,0.00260181,3221.6,3220.6,0.15533]
[1768845608173,0.90797424,3221.5,3220.6,0.15533]
[1768845608376,0.14473624,3221.6,3220.6,0.15533]
[1768845608672,0.90794757,3221.5,3220.6,0.15533]
[1768845608866,0.90794168,3221.4,3220.6,0.15533]
[1768845609177,0.14213443,3221.4,3220.2,0.00273894]
[1768845609476,0.14213443,3221.2,3220.2,0.00273894]
[1768845609969,0.14213443,3221.0,3220.2,0.00273894]
[1768845610171,0.14213443,3221.0,3220.0,0.15536]
[1768845611271,0.14213443,3221.0,3220.0,0.15847278]
[1768845612682,0.14213443,3221.0,3220.0,1.44479344]
[1768845612883,0.14213443,3221.0,3220.0,0.15847278]
[1768845626591,0.13956443,3221.5,3220.0,0.15847278]
[1768845626792,0.90760275,3221.4,3220.0,0.15847278]
[1768845626991,0.90760275,3221.3,3220.0,0.15847278]
[1768845627183,0.90760275,3221.2,3220.0,0.15847278]
[1768845627482,0.90760275,3221.1,3220.0,0.15847278]
[1768845627787,0.13956443,3221.4,3220.0,0.15847278]
[1768845627990,1.04718815,3221.3,3220.0,0.15847278]
[1768845628189,0.90762372,3221.2,3220.0,0.15847278]
[1768845633999,1.04718815,3221.2,3220.0,0.15847278]
[1768845634197,0.90762372,3221.1,3220.0,0.15847278]
[1768845635495,1.04718815,3221.1,3220.0,0.15847278]
[1768845635689,0.13956443,3221.1,3220.0,0.15847278]
[1768845636202,0.908238,3221.0,3220.0,0.15847278]
[1768845636399,0.13956443,3221.1,3220.0,0.15847278]
[1768845636598,0.908238,3221.0,3220.0,0.15847278]
[1768845636790,0.13956443,3221.1,3220.0,0.15847278]
[1768845637202,0.90839416,3221.0,3220.0,0.15847278]
[1768845637402,0.13956443,3221.1,3220.0,0.15847278]
[1768845637593,0.90839209,3221.0,3220.0,0.15847278]
[1768845637791,0.13956443,3221.1,3220.0,0.15847278]
[1768845637992,0.90839132,3221.0,3220.0,0.15847278]
[1768845638194,0.13956443,3221.1,3220.0,0.15847278]
[1768845638400,0.90866211,3221.0,3220.0,0.15847278]
[1768845638594,0.13956443,3221.1,3220.0,0.15847278]
[1768845638900,0.9086105,3221.0,3220.0,0.15847278]
[1768845639105,0.13956443,3221.1,3220.0,0.15847278]
[1768845639402,0.90858731,3221.0,3220.0,0.15847278]
[1768845639599,0.13956443,3221.1,3220.0,0.15847278]
[1768845639903,0.9088721,3221.0,3220.0,0.15847278]
[1768845640103,0.13956443,3221.1,3220.0,0.15847278]
[1768845640306,0.90886594,3221.0,3220.0,0.15847278]
[1768845640508,0.13956443,3221.1,3220.0,0.15847278]
[1768845640703,0.90878473,3221.0,3220.0,0.15847278]
[1768845640903,0.13956443,3221.1,3220.0,0.15847278]
[1768845641094,0.90878359,3221.0,3220.0,0.15847278]
[1768845641294,0.13956443,3221.1,3220.0,0.15847278]
[1768845641495,0.90878988,3221.0,3220.0,0.15847278]
[1768845641695,0.13956443,3221.1,3220.0,0.15847278]
[1768845641894,0.90878956,3221.0,3220.0,0.15847278]
[1768845642190,0.13956443,3221.1,3220.0,0.15847278]
[1768845642393,0.90878721,3221.0,3220.0,0.15847278]
[1768845642597,0.13956443,3221.1,3220.0,0.15847278]
[1768845642801,0.9087832,3221.0,3220.0,0.15847278]
[1768845643007,0.13956443,3221.1,3220.0,0.15847278]
[1768845643207,0.90878076,3221.0,3220.0,0.15847278]
[1768845643407,0.13956443,3221.1,3220.0,0.15847278]
[1768845643617,0.90878904,3221.0,3220.0,0.15847278]
[1768845643806,0.13956443,3221.1,3220.0,0.15847278]
[1768845644007,0.90879528,3221.0,3220.0,0.15847278]
[1768845644208,0.13956443,3221.1,3220.0,0.15847278]
[1768845644407,0.9088026,3221.0,3220.0,0.15847278]
[1768845644609,0.13956443,3221.1,3220.0,0.15847278]
[1768845644810,0.90880264,3221.0,3220.0,0.15847278]
[1768845645110,0.13956443,3221.1,3220.0,0.15847278]
[1768845645311,0.90881263,3221.0,3220.0,0.15847278]
[1768845645510,0.13956443,3221.1,3220.0,0.15847278]
[1768845645702,0.90882164,3221.0,3220.0,0.15847278]
[1768845645904,0.13956443,3221.1,3220.0,0.15847278]
[1768845646213,0.90882047,3221.0,3220.0,0.15847278]
[1768845646514,0.13956443,3221.1,3220.0,0.15847278]
[1768845646711,0.90883246,3221.0,3220.0,0.15847278]
[1768845646911,0.13956443,3221.1,3220.0,0.15847278]
[1768845647116,0.90883304,3221.0,3220.0,0.15847278]
[1768845647303,0.13956443,3221.1,3220.0,0.15847278]
[1768845647505,0.90884713,3221.0,3220.0,0.15847278]
[1768845647816,0.13956443,3221.1,3220.0,0.15847278]
[1768845648117,0.90884626,3221.0,3220.0,0.15847278]
[1768845648314,0.13956443,3221.1,3220.0,0.15847278]
[1768845648515,0.90886473,3221.0,3220.0,0.15847278]
[1768845648708,0.13956443,3221.1,3220.0,0.15847278]
[1768845648908,0.90886477,3221.0,3220.0,0.15847278]
[1768845649110,0.13956443,3221.1,3220.0,0.15847278]
[1768845649309,0.90810329,3221.0,3220.0,0.15847278]
[1768845649612,0.13956443,3221.1,3220.0,0.15847278]
[1768845649818,0.90811006,3221.0,3220.0,0.15847278]
[1768845650017,0.13956443,3221.1,3220.0,0.15847278]
[1768845650218,0.90811573,3221.0,3220.0,0.15847278]
[1768845650420,0.13956443,3221.1,3220.0,0.15847278]
[1768845650618,0.90813795,3221.0,3220.0,0.15847278]
[1768845650814,0.13956443,3221.1,3220.0,0.15847278]
[1768845651015,0.90813791,3221.0,3220.0,0.15847278]
[1768845651215,0.13956443,3221.1,3220.0,0.15847278]
[1768845651415,0.90815529,3221.0,3220.0,0.15847278]
[1768845651618,0.13956443,3221.1,3220.0,0.15847278]
[1768845651819,1.04471643,3221.0,3220.0,0.15847278]
[1768845652115,0.13655737,3221.0,3220.0,0.15847278]
[1768845656147,0.90840364,3220.9,3220.0,0.15847278]
[1768845656438,0.13655737,3221.0,3220.0,0.15847278]
[1768845656639,0.90845509,3220.9,3220.0,0.15847278]
[1768845656839,0.13655737,3221.0,3220.0,0.15847278]
[1768845657036,0.90845293,3220.9,3220.0,0.15847278]
[1768845657238,0.13655737,3221.0,3220.0,0.15847278]
[1768845657438,0.90844317,3220.9,3220.0,0.15847278]
[1768845657640,0.13655737,3221.0,3220.0,0.15847278]
[1768845657939,0.90844306,3220.9,3220.0,0.15847278]
[1768845658236,0.13655737,3221.0,3220.0,0.15847278]
[1768845658438,0.90843362,3220.9,3220.0,0.15847278]
[1768845658641,0.13655737,3221.0,3220.0,0.15847278]
[1768845658842,0.90842272,3220.9,3220.0,0.15847278]
[1768845659040,0.13655737,3221.0,3220.0,0.15847278]
[1768845659238,0.90842281,3220.9,3220.0,0.15847278]
[1768845659539,0.13655737,3221.0,3220.0,0.15847278]
[1768845659741,0.90842539,3220.9,3220.0,0.15847278]
[1768845660040,0.13655737,3221.0,3220.0,0.15847278]
[1768845660232,0.90842731,3220.9,3220.0,0.15847278]
[1768845660432,0.13655737,3221.0,3220.0,0.15847278]
[1768845660633,0.90842956,3220.9,3220.0,0.15847278]
[1768845660834,0.13655737,3221.0,3220.0,0.15847278]
[1768845661034,0.90843135,3220.9,3220.0,0.15847278]
[1768845661235,0.13655737,3221.0,3220.0,0.15847278]
[1768845661439,0.9084985,3220.9,3220.0,0.15847278]
[1768845661632,0.13655737,3221.0,3220.0,0.15847278]
[1768845661933,0.9085159,3220.9,3220.0,0.15847278]
[1768845662241,0.13612817,3221.4,3220.0,0.00311278]
[1768845662435,0.90851847,3221.3,3220.0,0.00311278]
[1768845662743,0.00260181,3221.6,3220.5,0.15533]
[1768845662936,0.90864656,3221.5,3220.5,0.15533]
[1768845663136,0.90864656,3221.4,3220.5,0.15533]
[1768845663336,0.00260181,3221.6,3220.5,0.15533]
[1768845663536,0.9080003,3221.5,3220.5,0.15533]
[1768845663736,0.00260181,3221.6,3220.5,0.15533]
[1768845663944,0.90682483,3221.5,3220.5,0.15533]
[1768845664138,0.00260181,3221.6,3220.5,0.15533]
[1768845664341,0.90681592,3221.5,3220.5,0.15533]
[1768845664641,0.00260181,3221.6,3220.5,0.15533]
[1768845664842,0.90654156,3221.5,3220.5,0.15533]
[1768845665043,0.00260181,3221.6,3220.5,0.15533]
[1768845665243,0.90654151,3221.5,3220.5,0.15533]
[1768845665436,0.00260181,3221.6,3220.5,0.15533]
[1768845665636,0.90634189,3221.5,3220.5,0.15533]
[1768845665837,0.00260181,3221.6,3220.5,0.15533]
[1768845666037,0.90635211,3221.5,3220.5,0.15533]
[1768845666240,0.00260181,3221.6,3220.5,0.15533]
[1768845666546,0.9062169,3221.5,3220.5,0.15533]
[1768845666740,0.00260181,3221.6,3220.5,0.15533]
[1768845666932,0.90621773,3221.5,3220.5,0.15533]
[1768845667137,0.00260181,3221.6,3220.5,0.15533]
[1768845667347,0.00260181,3221.6,3220.7,0.15532]
[1768845667541,0.00260181,3221.6,3220.2,1.28657842]
[1768845667842,0.13612817,3222.2,3221.0,0.15531]
[1768845668047,0.90625053,3222.1,3221.0,0.15531]
[1768845668344,0.13612817,3222.2,3221.0,0.15531]
[1768845668534,0.90567768,3222.1,3221.0,0.15531]
[1768845668741,0.00290934,3222.1,3221.0,0.15531]
[1768845675055,0.00290934,3222.1,3221.1,1.28567904]
[1768845683864,0.00290934,3222.1,3221.2,0.1553]
[1768845690770,0.00290934,3222.1,3221.3,1.28567904]
[1768845691562,0.00290934,3222.1,3221.3,1.44097904]
[1768845693069,0.00290934,3222.1,3221.5,1.28567904]
[1768845693270,0.14152388,3222.6,3221.7,1.28567904]
[1768845693472,0.90499317,3222.5,3221.5,1.28567904]
[1768845693674,0.90499317,3222.4,3221.5,1.28567904]
[1768845693873,0.14152388,3222.6,3221.5,1.28567904]
[1768845694073,0.904994,3222.5,3221.5,1.28567904]
[1768845694274,0.904994,3222.4,3221.5,1.28567904]
[1768845694475,0.0034445,3222.5,3221.5,1.28567904]
[1768845695969,0.0034445,3222.5,3221.5,1.44096904]
[1768845697375,0.90620247,3222.4,3221.5,1.44096904]
[1768845697575,0.0034445,3222.5,3221.5,1.44096904]
[1768845697775,0.90620247,3222.4,3221.5,1.44096904]
[1768845697975,0.0034445,3222.5,3221.5,1.44096904]
[1768845698170,0.9062017,3222.4,3221.5,1.44096904]
[1768845698384,0.0034445,3222.5,3221.5,1.44096904]
[1768845698590,0.90615384,3222.4,3221.5,1.44096904]
[1768845698880,0.0034445,3222.5,3221.5,1.44096904]
[1768845699078,0.90627018,3222.4,3221.5,1.44096904]
[1768845699381,0.0034445,3222.5,3221.5,1.44096904]
[1768845699588,0.9063003,3222.4,3221.5,1.44096904]
[1768845699767,0.0034445,3222.5,3221.5,1.44096904]
[1768845699971,0.90641102,3222.4,3221.5,1.44096904]
[1768845700175,0.0034445,3222.5,3221.5,1.44096904]
[1768845700383,0.9064904,3222.4,3221.5,1.44096904]
[1768845700566,0.0034445,3222.5,3221.5,1.44096904]
[1768845700771,0.90649839,3222.4,3221.5,1.44096904]
[1768845701070,0.0034445,3222.5,3221.5,1.44096904]
[1768845701272,0.90649894,3222.4,3221.5,1.44096904]
[1768845701480,0.0034445,3222.5,3221.5,1.44096904]
[1768845701678,0.90645619,3222.4,3221.5,1.44096904]
[1768845701882,0.0034445,3222.5,3221.5,1.44096904]
[1768845702073,0.90645679,3222.4,3221.5,1.44096904]
[1768845702273,0.0034445,3222.5,3221.5,1.44096904]
[1768845702474,0.90642144,3222.4,3221.5,1.44096904]
[1768845702674,0.0034445,3222.5,3221.5,1.44096904]
[1768845702874,0.90642146,3222.4,3221.5,1.44096904]
[1768845703074,0.0034445,3222.5,3221.5,1.44096904]
[1768845703884,0.14371928,3222.3,3221.0,0.15531]
[1768845704084,0.14371928,3222.3,3221.0,1.44098904]
[1768845704870,0.14371928,3222.3,3221.2,1.28567904]
[1768845710687,0.0034445,3222.5,3221.4,1.28567904]
[1768845710990,0.90644669,3222.4,3221.4,1.28567904]
[1768845711177,0.0034445,3222.5,3221.4,1.28567904]
[1768845711382,0.90646235,3222.4,3221.4,1.28567904]
[1768845711590,0.0034445,3222.5,3221.0,1.42191425]
[1768845711800,0.90646267,3222.4,3221.5,1.28567904]
[1768845712000,0.0034445,3222.5,3221.5,1.28567904]
[1768845712203,0.90646114,3222.4,3221.5,1.28567904]
[1768845712395,0.0034445,3222.5,3221.5,1.28567904]
[1768845712698,0.90648714,3222.4,3221.5,1.44096904]
[1768845712900,0.0034445,3222.5,3221.5,1.44096904]
[1768845713096,0.90648548,3222.4,3221.5,1.44096904]
[1768845713304,0.0034445,3222.5,3221.5,1.44096904]
[1768845713599,0.90651744,3222.4,3221.5,1.44096904]
[1768845713801,0.0034445,3222.5,3221.5,1.44096904]
[1768845714000,0.90650871,3222.4,3221.5,1.44096904]
[1768845714204,0.0034445,3222.5,3221.5,1.44096904]
[1768845714403,0.90654636,3222.4,3221.5,1.44096904]
[1768845714602,0.0034445,3222.5,3221.5,1.44096904]
[1768845714904,0.90654558,3222.4,3221.5,1.44096904]
[1768845715201,0.0034445,3222.5,3221.5,1.44096904]
[1768845715404,0.90654592,3222.4,3221.5,1.44096904]
[1768845715700,0.0034445,3222.5,3221.5,1.44096904]
[1768845715903,0.90659869,3222.4,3221.5,1.44096904]
[1768845716100,0.0034445,3222.5,3221.5,1.44096904]
[1768845716296,0.90659809,3222.4,3221.5,1.44096904]
[1768845716492,0.0034445,3222.5,3221.5,1.44096904]
[1768845716688,0.90665647,3222.4,3221.5,1.44096904]
[1768845716901,0.0034445,3222.5,3221.5,1.44096904]
[1768845717102,0.90665522,3222.4,3221.5,1.44096904]
[1768845717300,0.0034445,3222.5,3221.5,0.15529]
[1768845717489,0.90672834,3222.4,3221.5,0.15529]
[1768845717694,0.0034445,3222.5,3221.5,0.15529]
[1768845717905,0.90672848,3222.4,3221.5,0.15529]
[1768845718104,0.0034445,3222.5,3221.5,0.15529]
[1768845718306,0.90672852,3222.4,3221.5,0.15529]
[1768845718508,0.0034445,3222.5,3221.5,0.15529]
[1768845718704,0.90679436,3222.4,3221.5,0.15529]
[1768845718896,0.13446272,3222.5,3221.5,0.15529]
[1768845719095,0.90680921,3222.4,3221.5,0.15529]
[1768845719394,0.13446272,3222.5,3221.5,0.15529]
[1768845719596,0.90689179,3222.4,3221.5,0.15529]
[1768845719795,0.13446272,3222.5,3221.5,0.15529]
[1768845720005,0.90689359,3222.4,3221.5,0.15529]
[1768845720205,0.13446272,3222.5,3221.5,0.15529]
[1768845720407,0.90698356,3222.4,3221.5,0.15529]
[1768845720703,0.90698356,3222.3,3221.5,0.15529]
[1768845721007,0.13446272,3222.5,3221.5,0.15529]
[1768845721203,2.32366118,3222.4,3220.9,0.15532]
[1768845721406,1.03798214,3222.3,3221.0,4.83867904]
[1768845721707,0.13101822,3222.3,3221.0,4.99398904]
[1768845722000,0.0034445,3222.5,3221.0,4.99398904]
[1768845722001,0.13446272,3222.5,3221.1,0.15531]
[1768845722198,0.13101822,3222.3,3221.1,1.44098904]
[1768845722505,1.03809081,3222.2,3221.1,0.15531]
[1768845722695,0.13101822,3222.2,3221.1,0.15531]
[1768845723999,1.41669726,3222.0,3221.1,0.15531]
[1768845726904,1.41669726,3222.0,3220.7,45.64167904]
[1768845727102,0.90656812,3221.9,3220.7,45.64167904]
[1768845727294,1.41669726,3222.0,3220.7,45.64167904]
[1768845727495,0.90630265,3221.9,3220.7,45.64167904]
[1768845727696,1.41669726,3222.0,3220.7,4.84167904]
[1768845727893,1.28567904,3221.6,3220.5,0.15533]
[1768845728097,1.41669726,3221.4,3220.5,0.15533]
[1768845728602,0.13101822,3221.4,3220.5,0.15533]
[1768845730309,0.13101822,3221.4,3220.1,45.64767904]
[1768845730698,1.41669726,3221.4,3220.1,45.64767904]
[1768845731008,0.13101822,3221.4,3220.3,1.28567904]
[1768845732700,0.13101822,3221.4,3220.2,1.28567904]
[1768845734910,0.13101822,3221.4,3220.1,44.362]
[1768845736409,0.13101822,3221.4,3220.1,3.562]
[1768845736609,0.13101822,3221.4,3220.0,0.15847278]
[1768845737003,0.13101822,3221.4,3220.0,42.86647278]
[1768845737399,0.13101822,3221.4,3220.0,2.06647278]
[1768845741916,0.15527,3221.8,3220.0,2.06647278]
[1768845742112,0.90339029,3221.7,3220.3,0.13066035]
[1768845742314,0.15527,3221.8,3220.3,0.13066035]
[1768845742713,0.13101822,3221.9,3220.3,0.28600035]
[1768845745618,0.13120018,3221.6,3220.3,0.15534]
[1768845755316,0.90612186,3221.5,3220.3,0.15534]
[1768845755621,0.13120018,3221.6,3220.3,0.15534]
[1768845755819,1.66258593,3222.3,3220.7,0.13523891]
[1768845756014,0.32755258,3222.2,3220.7,0.13523891]
[1768845756213,1.23375708,3222.1,3220.7,0.13523891]
[1768845756413,0.9062045,3222.0,3220.7,0.13523891]
[1768845756622,0.9062045,3221.9,3220.7,0.13523891]
[1768845756915,0.9062045,3221.8,3220.7,0.29056891]
[1768845757122,1.79378611,3222.3,3220.7,0.29056891]
[1768845757420,1.23423175,3222.2,3220.7,0.29056891]
[1768845757620,1.23423175,3222.1,3220.7,0.29056891]
[1768845757824,0.90651667,3222.0,3220.7,0.29056891]
[1768845758025,0.90651667,3221.9,3220.7,0.29056891]
[1768845758327,0.90651667,3221.8,3220.7,0.29056891]
[1768845758529,0.13120018,3222.3,3220.7,0.29056891]
[1768845758724,1.23421598,3222.2,3220.7,0.29056891]
[1768845759020,1.23421598,3222.1,3220.7,0.29056891]
[1768845759317,0.90653607,3222.0,3220.7,0.29056891]
[1768845759522,0.90653607,3221.9,3220.8,40.8]